[Event "*** Titled Tuesday Blitz"]
[Site "Chess.com"]
[Date "2021.02.16"]
[Round "3"]
[White "elcandado"]
[Black "FairChess_on_YouTube"]
[Result "0-1"]
[WhiteElo "2662"]
[BlackElo "2940"]
[TimeControl "180+1"]
[EndTime "10:30:01 PST"]
[Termination "FairChess_on_YouTube won by resignation"]

1. d4 {[%clk 0:03:00.9]} 1... Nf6 {[%clk 0:02:59.4]} 2. Bf4 {[%clk 0:02:59.8]}
2... c5 {[%clk 0:02:54.8]} 3. c3 {[%clk 0:02:59]} 3... Qb6 {[%clk 0:02:52.5]} 4.
Nd2 {[%clk 0:02:58.2]} 4... d5 {[%clk 0:02:42.7]} 5. Qb3 {[%clk 0:02:50.4]} 5...
Nc6 {[%clk 0:02:35.8]} 6. e3 {[%clk 0:02:49.3]} 6... Bf5 {[%clk 0:02:31.9]} 7.
dxc5 {[%clk 0:02:47.6]} 7... Qxc5 {[%clk 0:02:19.3]} 8. Qxb7 {[%clk 0:02:42.9]}
8... Rc8 {[%clk 0:02:19.8]} 9. Bb5 {[%clk 0:01:59.8]} 9... Bd7 {[%clk
0:02:12.7]} 10. Nb3 {[%clk 0:01:49]} 10... Qb6 {[%clk 0:02:10.8]} 11. Qxb6
{[%clk 0:01:43.7]} 11... axb6 {[%clk 0:02:11.7]} 12. Nf3 {[%clk 0:01:39.8]}
12... e6 {[%clk 0:02:10]} 13. Nbd4 {[%clk 0:01:31.4]} 13... Na5 {[%clk
0:02:02.6]} 14. Ba6 {[%clk 0:01:10.8]} 14... Ra8 {[%clk 0:02:01.4]} 15. Be2
{[%clk 0:01:10.5]} 15... Ne4 {[%clk 0:01:59.5]} 16. Rd1 {[%clk 0:00:48.1]} 16...
Nc4 {[%clk 0:01:55.4]} 17. Bxc4 {[%clk 0:00:43.1]} 17... dxc4 {[%clk 0:01:56.3]}
18. a3 {[%clk 0:00:37.8]} 18... f6 {[%clk 0:01:56.2]} 19. Bg3 {[%clk 0:00:36.7]}
19... e5 {[%clk 0:01:54.5]} 20. Ne2 {[%clk 0:00:25.5]} 20... Ba4 {[%clk
0:01:54.1]} 21. Ra1 {[%clk 0:00:24.7]} 21... Rd8 {[%clk 0:01:43.1]} 22. h4
{[%clk 0:00:17.8]} 22... h5 {[%clk 0:01:39.4]} 23. Bh2 {[%clk 0:00:17.1]} 23...
Nc5 {[%clk 0:01:29.7]} 24. Ng3 {[%clk 0:00:09.6]} 24... g6 {[%clk 0:01:25.6]}
25. Ke2 {[%clk 0:00:08.4]} 25... Be7 {[%clk 0:01:19.5]} 26. Rhb1 {[%clk
0:00:07.8]} 26... Bc2 {[%clk 0:01:17.6]} 27. Rc1 {[%clk 0:00:06.7]} 27... Bd3+
{[%clk 0:01:17.4]} 28. Ke1 {[%clk 0:00:07]} 28... Nb3 {[%clk 0:01:17.8]} 29. Nf1
{[%clk 0:00:03.6]} 29... Kf7 {[%clk 0:01:10.5]} 30. N1d2 {[%clk 0:00:03.7]}
30... Nxa1 {[%clk 0:01:09.3]} 31. Rxa1 {[%clk 0:00:03.1]} 31... b5 {[%clk
0:01:09.9]} 32. Ng1 {[%clk 0:00:02.6]} 32... Ra8 {[%clk 0:01:07.8]} 33. Ne2
{[%clk 0:00:02.7]} 33... b4 {[%clk 0:01:07.7]} 34. cxb4 {[%clk 0:00:02.7]} 34...
Bxb4 {[%clk 0:01:08.1]} 35. Nc1 {[%clk 0:00:03.3]} 35... Rhd8 {[%clk 0:01:06.1]}
0-1

[Event "*** Titled Tuesday Blitz"]
[Site "Chess.com"]
[Date "2021.02.16"]
[Round "3"]
[White "Zkid"]
[Black "KNCP_719"]
[Result "1-0"]
[WhiteElo "2800"]
[BlackElo "2601"]
[TimeControl "180+1"]
[EndTime "10:30:01 PST"]
[Termination "Zkid won by resignation"]

1. e4 {[%clk 0:03:00.9]} 1... Nf6 {[%clk 0:02:59.6]} 2. e5 {[%clk 0:02:59.8]}
2... Nd5 {[%clk 0:03:00.1]} 3. d4 {[%clk 0:03:00.3]} 3... d6 {[%clk 0:03:00.6]}
4. Nf3 {[%clk 0:03:00.6]} 4... g6 {[%clk 0:03:00.7]} 5. Bc4 {[%clk 0:02:57.7]}
5... Nb6 {[%clk 0:03:00.7]} 6. Bb3 {[%clk 0:02:55.8]} 6... Bg7 {[%clk
0:03:01.3]} 7. Qe2 {[%clk 0:02:55.9]} 7... O-O {[%clk 0:03:00.3]} 8. h3 {[%clk
0:02:52.1]} 8... c5 {[%clk 0:03:00.3]} 9. dxc5 {[%clk 0:02:50.2]} 9... dxc5
{[%clk 0:03:01.2]} 10. O-O {[%clk 0:02:47.8]} 10... c4 {[%clk 0:03:01.6]} 11.
Bxc4 {[%clk 0:02:46.9]} 11... Nxc4 {[%clk 0:03:02.5]} 12. Qxc4 {[%clk
0:02:47.1]} 12... Nc6 {[%clk 0:02:59.7]} 13. Bf4 {[%clk 0:02:39.2]} 13... Qa5
{[%clk 0:02:54.7]} 14. Nc3 {[%clk 0:02:29.6]} 14... Bf5 {[%clk 0:02:25]} 15.
Rfd1 {[%clk 0:02:01.6]} 15... Rac8 {[%clk 0:02:17.4]} 16. Qe2 {[%clk 0:01:54.7]}
16... Qb4 {[%clk 0:02:02.1]} 17. Nd5 {[%clk 0:01:37.6]} 17... Qxb2 {[%clk
0:01:53.6]} 18. Rdb1 {[%clk 0:01:36.5]} 18... Qxc2 {[%clk 0:01:40.8]} 19. Qxc2
{[%clk 0:01:35.9]} 19... Bxc2 {[%clk 0:01:41.7]} 20. Rxb7 {[%clk 0:01:36]} 20...
Be4 {[%clk 0:01:41.7]} 21. Nxe7+ {[%clk 0:01:31]} 21... Nxe7 {[%clk 0:01:31.7]}
22. Rxe7 {[%clk 0:01:31.9]} 22... a5 {[%clk 0:01:09.8]} 23. Rd1 {[%clk
0:01:24.4]} 23... Rc2 {[%clk 0:01:03.4]} 24. Ng5 {[%clk 0:01:16.6]} 24... Bf5
{[%clk 0:00:56.9]} 25. g4 {[%clk 0:01:12.6]} 25... Bc8 {[%clk 0:00:55.1]} 26.
Rd2 {[%clk 0:01:08.7]} 26... Rc4 {[%clk 0:00:51.1]} 27. Be3 {[%clk 0:01:02.1]}
27... Bxe5 {[%clk 0:00:43.7]} 28. Rxe5 {[%clk 0:00:57.1]} 28... f6 {[%clk
0:00:30.4]} 29. Rc5 {[%clk 0:00:56.8]} 29... Rxc5 {[%clk 0:00:04]} 30. Bxc5
{[%clk 0:00:57.7]} 30... Re8 {[%clk 0:00:04]} 31. Ne4 {[%clk 0:00:47.7]} 31...
Bb7 {[%clk 0:00:04.5]} 1-0

[Event "*** Titled Tuesday Blitz"]
[Site "Chess.com"]
[Date "2021.02.16"]
[Round "3"]
[White "KafkaesqueKnight"]
[Black "KetiGrant"]
[Result "0-1"]
[WhiteElo "2186"]
[BlackElo "2372"]
[TimeControl "180+1"]
[EndTime "10:30:06 PST"]
[Termination "KetiGrant won by resignation"]

1. d4 {[%clk 0:03:00.9]} 1... Nf6 {[%clk 0:02:59.1]} 2. c4 {[%clk 0:03:01.2]}
2... g6 {[%clk 0:02:59.7]} 3. Nc3 {[%clk 0:03:00.3]} 3... Bg7 {[%clk 0:03:00.6]}
4. e4 {[%clk 0:03:00.7]} 4... d6 {[%clk 0:03:00.8]} 5. Nge2 {[%clk 0:03:01.3]}
5... O-O {[%clk 0:03:00.9]} 6. Ng3 {[%clk 0:03:01.9]} 6... c5 {[%clk 0:02:57.6]}
7. d5 {[%clk 0:03:01.6]} 7... e6 {[%clk 0:02:57.2]} 8. Be2 {[%clk 0:03:01]} 8...
exd5 {[%clk 0:02:56.8]} 9. exd5 {[%clk 0:02:59.9]} 9... Re8 {[%clk 0:02:56]} 10.
O-O {[%clk 0:02:57.9]} 10... Nbd7 {[%clk 0:02:53.6]} 11. Bg5 {[%clk 0:02:57.7]}
11... h6 {[%clk 0:02:52.7]} 12. Be3 {[%clk 0:02:52.2]} 12... a6 {[%clk
0:02:34.7]} 13. Qd2 {[%clk 0:02:50]} 13... Kh7 {[%clk 0:02:35.1]} 14. h4 {[%clk
0:02:48.1]} 14... h5 {[%clk 0:02:22.4]} 15. Bg5 {[%clk 0:02:45.2]} 15... Qe7
{[%clk 0:02:11.2]} 16. Rae1 {[%clk 0:02:15.4]} 16... Qf8 {[%clk 0:02:10.8]} 17.
f4 {[%clk 0:02:13.3]} 17... Ng4 {[%clk 0:01:28.6]} 18. Bxg4 {[%clk 0:02:01.5]}
18... hxg4 {[%clk 0:01:28.5]} 19. Rxe8 {[%clk 0:01:57.7]} 19... Qxe8 {[%clk
0:01:27.1]} 20. Re1 {[%clk 0:01:53.9]} 20... Qh8 {[%clk 0:01:18.3]} 21. h5
{[%clk 0:01:47.8]} 21... Bd4+ {[%clk 0:01:13]} 22. Kf1 {[%clk 0:01:48.3]} 22...
Nf6 {[%clk 0:01:07.9]} 23. hxg6+ {[%clk 0:01:43.7]} 23... Kxg6 {[%clk
0:01:04.9]} 24. Nce2 {[%clk 0:01:13.2]} 24... Ne4 {[%clk 0:00:33.5]} 25. Qd3
{[%clk 0:00:55.1]} 25... Bf5 {[%clk 0:00:32.4]} 26. Nxd4 {[%clk 0:00:44.6]}
26... Nxg3+ {[%clk 0:00:29.6]} 27. Qxg3 {[%clk 0:00:42.7]} 27... Qxd4 {[%clk
0:00:28]} 28. Qc3 {[%clk 0:00:33.8]} 28... Bd3+ {[%clk 0:00:26]} 0-1

[Event "*** Titled Tuesday Blitz"]
[Site "Chess.com"]
[Date "2021.02.16"]
[Round "3"]
[White "Superfelix"]
[Black "AlexeiShirov"]
[Result "0-1"]
[WhiteElo "2446"]
[BlackElo "2833"]
[TimeControl "180+1"]
[EndTime "10:30:10 PST"]
[Termination "AlexeiShirov won by resignation"]

1. e4 {[%clk 0:03:00.9]} 1... e5 {[%clk 0:02:59.4]} 2. Nf3 {[%clk 0:02:59.9]}
2... Nc6 {[%clk 0:02:59.3]} 3. d4 {[%clk 0:02:59.7]} 3... exd4 {[%clk
0:02:58.6]} 4. Nxd4 {[%clk 0:03:00.6]} 4... Qf6 {[%clk 0:02:57.5]} 5. Nb5 {[%clk
0:02:54.1]} 5... Bc5 {[%clk 0:02:50.2]} 6. Qf3 {[%clk 0:02:42.4]} 6... Qxf3
{[%clk 0:02:40.9]} 7. gxf3 {[%clk 0:02:43.3]} 7... Kd8 {[%clk 0:02:40.6]} 8. Be3
{[%clk 0:02:36.3]} 8... Bb4+ {[%clk 0:02:32.2]} 9. c3 {[%clk 0:02:31.8]} 9...
Be7 {[%clk 0:02:31.2]} 10. Rg1 {[%clk 0:02:29.8]} 10... g6 {[%clk 0:02:23.9]}
11. Nd2 {[%clk 0:02:27.8]} 11... Nf6 {[%clk 0:02:18.4]} 12. O-O-O {[%clk
0:02:11.7]} 12... d6 {[%clk 0:02:14.9]} 13. f4 {[%clk 0:02:06.7]} 13... Ng4
{[%clk 0:02:10.6]} 14. e5 {[%clk 0:01:57.7]} 14... Nxe3 {[%clk 0:02:03]} 15.
fxe3 {[%clk 0:01:55.8]} 15... a6 {[%clk 0:01:59.4]} 16. exd6 {[%clk 0:01:52.5]}
16... axb5 {[%clk 0:01:52.6]} 17. dxe7+ {[%clk 0:01:51.2]} 17... Kxe7 {[%clk
0:01:52.4]} 18. Bxb5 {[%clk 0:01:43.6]} 18... Rxa2 {[%clk 0:01:50.4]} 19. Kb1
{[%clk 0:01:34.8]} 19... Ra5 {[%clk 0:01:47.7]} 20. Bxc6 {[%clk 0:01:32.8]}
20... bxc6 {[%clk 0:01:46.7]} 21. e4 {[%clk 0:01:21.9]} 21... Be6 {[%clk
0:01:45.8]} 22. Kc2 {[%clk 0:01:16.6]} 22... Rb8 {[%clk 0:01:43.9]} 23. b4
{[%clk 0:00:40.8]} 23... Ra2+ {[%clk 0:01:42.7]} 24. Kd3 {[%clk 0:00:41.2]}
24... Rd8+ {[%clk 0:01:39.6]} 25. Ke3 {[%clk 0:00:40.8]} 25... Rc2 {[%clk
0:01:38.1]} 26. Nb1 {[%clk 0:00:31.5]} 26... Rxd1 {[%clk 0:01:35.8]} 27. Rxd1
{[%clk 0:00:32.4]} 27... Rxh2 {[%clk 0:01:35.8]} 28. Kd4 {[%clk 0:00:28.6]}
28... Rf2 {[%clk 0:01:26.3]} 29. Kc5 {[%clk 0:00:21.7]} 29... Rxf4 {[%clk
0:01:24.5]} 30. Kxc6 {[%clk 0:00:22.1]} 30... Rxe4 {[%clk 0:01:23.3]} 31. Kxc7
{[%clk 0:00:22.2]} 31... Rc4+ {[%clk 0:01:21.3]} 32. Kb6 {[%clk 0:00:20.6]}
32... h5 {[%clk 0:01:19.9]} 33. Rd3 {[%clk 0:00:20.7]} 33... h4 {[%clk
0:01:12.4]} 34. Nd2 {[%clk 0:00:20.9]} 34... Rc8 {[%clk 0:01:10.5]} 35. Kb7
{[%clk 0:00:20.6]} 35... h3 {[%clk 0:01:06.9]} 36. Re3 {[%clk 0:00:20.8]} 36...
h2 {[%clk 0:00:59.6]} 37. Re1 {[%clk 0:00:20.8]} 37... Rxc3 {[%clk 0:00:57.4]}
38. b5 {[%clk 0:00:21.2]} 38... Kd7 {[%clk 0:00:52.8]} 39. b6 {[%clk 0:00:21.3]}
39... Bd5+ {[%clk 0:00:52.2]} 40. Kb8 {[%clk 0:00:21.5]} 40... h1=Q {[%clk
0:00:51.4]} 0-1

[Event "*** Titled Tuesday Blitz"]
[Site "Chess.com"]
[Date "2021.02.16"]
[Round "3"]
[White "Skat2704"]
[Black "Kaua18"]
[Result "1-0"]
[WhiteElo "2545"]
[BlackElo "2365"]
[TimeControl "180+1"]
[EndTime "10:30:18 PST"]
[Termination "Skat2704 won by resignation"]

1. d4 {[%clk 0:03:00.9]} 1... Nf6 {[%clk 0:02:59.6]} 2. c4 {[%clk 0:02:59.8]}
2... e6 {[%clk 0:02:59.9]} 3. Nf3 {[%clk 0:02:57.9]} 3... b6 {[%clk 0:02:56.9]}
4. g3 {[%clk 0:02:56.8]} 4... Bb7 {[%clk 0:02:57]} 5. Bg2 {[%clk 0:02:55.8]}
5... Bb4+ {[%clk 0:02:55.2]} 6. Bd2 {[%clk 0:02:54.4]} 6... c5 {[%clk
0:02:54.8]} 7. O-O {[%clk 0:02:49.7]} 7... O-O {[%clk 0:02:53.3]} 8. Nc3 {[%clk
0:02:47.2]} 8... cxd4 {[%clk 0:02:46.6]} 9. Nxd4 {[%clk 0:02:44.8]} 9... Bxg2
{[%clk 0:02:47.5]} 10. Kxg2 {[%clk 0:02:44.2]} 10... Qc8 {[%clk 0:02:48]} 11. b3
{[%clk 0:02:36.2]} 11... a6 {[%clk 0:02:46.3]} 12. Nd5 {[%clk 0:02:29.6]} 12...
Qb7 {[%clk 0:02:24.7]} 13. Bxb4 {[%clk 0:02:26]} 13... exd5 {[%clk 0:02:22.7]}
14. Bxf8 {[%clk 0:02:23.9]} 14... dxc4+ {[%clk 0:02:13.7]} 15. f3 {[%clk
0:02:23]} 15... Nd5 {[%clk 0:01:56.3]} 16. Qc1 {[%clk 0:02:12.5]} 16... Kxf8
{[%clk 0:01:31.1]} 17. bxc4 {[%clk 0:02:09.8]} 17... Ne7 {[%clk 0:01:30]} 18. e4
{[%clk 0:02:07]} 18... Nbc6 {[%clk 0:01:28.3]} 19. Rd1 {[%clk 0:02:03.1]} 19...
Rc8 {[%clk 0:01:28]} 20. Nxc6 {[%clk 0:01:49.2]} 20... Qxc6 {[%clk 0:01:23.7]}
21. Qe3 {[%clk 0:01:43.3]} 21... Qxc4 {[%clk 0:01:20.9]} 22. Rdc1 {[%clk
0:01:40.8]} 22... Qb4 {[%clk 0:01:05]} 23. Rxc8+ {[%clk 0:01:38.2]} 23... Nxc8
{[%clk 0:01:05.9]} 24. Rd1 {[%clk 0:01:34]} 24... d6 {[%clk 0:00:59.1]} 25. Qg5
{[%clk 0:01:29.8]} 25... Qb2+ {[%clk 0:00:51.2]} 26. Rd2 {[%clk 0:01:27.5]}
26... Qf6 {[%clk 0:00:39]} 27. Qxf6 {[%clk 0:01:23.2]} 27... gxf6 {[%clk
0:00:39.9]} 28. Rc2 {[%clk 0:01:22.8]} 28... Ne7 {[%clk 0:00:40.1]} 29. Rc7
{[%clk 0:01:21.9]} 29... Ke8 {[%clk 0:00:39.7]} 30. Ra7 {[%clk 0:01:19.9]} 30...
a5 {[%clk 0:00:37.5]} 31. Rb7 {[%clk 0:01:17.7]} 31... f5 {[%clk 0:00:22.7]} 32.
Rxb6 {[%clk 0:01:16]} 32... fxe4 {[%clk 0:00:22.7]} 33. fxe4 {[%clk 0:01:16.2]}
33... d5 {[%clk 0:00:22.2]} 34. exd5 {[%clk 0:01:11.7]} 34... Nxd5 {[%clk
0:00:23.1]} 35. Rb5 {[%clk 0:01:10.2]} 35... Ne3+ {[%clk 0:00:22.6]} 36. Kf3
{[%clk 0:01:08]} 36... Nc4 {[%clk 0:00:21.6]} 37. Rc5 {[%clk 0:01:05.4]} 37...
Nd2+ {[%clk 0:00:13.6]} 38. Ke2 {[%clk 0:01:03.9]} 38... Ne4 {[%clk 0:00:13.7]}
39. Re5+ {[%clk 0:00:59.2]} 1-0

[Event "*** Titled Tuesday Blitz"]
[Site "Chess.com"]
[Date "2021.02.16"]
[Round "3"]
[White "Nastya_Rakhmangulova"]
[Black "Guzman70"]
[Result "1-0"]
[WhiteElo "2495"]
[BlackElo "2232"]
[TimeControl "180+1"]
[EndTime "10:30:18 PST"]
[Termination "Nastya_Rakhmangulova won by resignation"]

1. e4 {[%clk 0:03:00.9]} 1... g6 {[%clk 0:02:57.8]} 2. Nc3 {[%clk 0:02:59.8]}
2... Bg7 {[%clk 0:02:48.1]} 3. g3 {[%clk 0:02:57.8]} 3... c5 {[%clk 0:02:41]} 4.
Bg2 {[%clk 0:02:56.7]} 4... Nc6 {[%clk 0:02:26]} 5. Nge2 {[%clk 0:02:55.3]} 5...
d6 {[%clk 0:02:24.4]} 6. O-O {[%clk 0:02:52.8]} 6... Rb8 {[%clk 0:02:03.7]} 7.
a4 {[%clk 0:02:51.9]} 7... a6 {[%clk 0:01:56.6]} 8. d3 {[%clk 0:02:47.3]} 8...
b5 {[%clk 0:01:55.6]} 9. axb5 {[%clk 0:02:46.9]} 9... axb5 {[%clk 0:01:56.5]}
10. h3 {[%clk 0:02:43.8]} 10... b4 {[%clk 0:01:54.6]} 11. Nd5 {[%clk 0:02:42.9]}
11... e6 {[%clk 0:01:53]} 12. Ne3 {[%clk 0:02:42]} 12... Nge7 {[%clk 0:01:53]}
13. g4 {[%clk 0:02:39.6]} 13... O-O {[%clk 0:01:41.7]} 14. Ng3 {[%clk
0:02:39.1]} 14... Nd4 {[%clk 0:01:36.7]} 15. f4 {[%clk 0:02:28.4]} 15... f5
{[%clk 0:01:36]} 16. exf5 {[%clk 0:02:28]} 16... gxf5 {[%clk 0:01:33.7]} 17. Nh5
{[%clk 0:02:12.4]} 17... Bb7 {[%clk 0:01:29.9]} 18. Nxg7 {[%clk 0:02:07.9]}
18... Kxg7 {[%clk 0:01:27.5]} 19. c3 {[%clk 0:02:08]} 19... Bxg2 {[%clk
0:01:25.5]} 20. Kxg2 {[%clk 0:01:47.6]} 20... bxc3 {[%clk 0:01:25.4]} 21. bxc3
{[%clk 0:01:48.5]} 21... Nb3 {[%clk 0:01:25.6]} 22. Ra7 {[%clk 0:01:48.7]} 22...
Nxc1 {[%clk 0:01:23.8]} 23. Qxc1 {[%clk 0:01:49.6]} 23... Kh8 {[%clk 0:01:17.8]}
24. g5 {[%clk 0:01:45.6]} 24... Nc6 {[%clk 0:01:10.6]} 25. Ra6 {[%clk
0:01:43.5]} 25... Rb6 {[%clk 0:01:07]} 26. Qa1 {[%clk 0:01:43.1]} 26... Rxa6
{[%clk 0:01:00.7]} 27. Qxa6 {[%clk 0:01:44]} 27... Ne7 {[%clk 0:00:46.3]} 28.
Rb1 {[%clk 0:01:40.4]} 28... Ng6 {[%clk 0:00:34.7]} 29. Qa4 {[%clk 0:01:24]}
29... e5 {[%clk 0:00:28.8]} 30. Nd5 {[%clk 0:01:20.9]} 30... exf4 {[%clk
0:00:25.5]} 31. Nf6 {[%clk 0:01:18.8]} 31... Rxf6 {[%clk 0:00:19.9]} 32. gxf6
{[%clk 0:01:19.2]} 32... Qxf6 {[%clk 0:00:20.6]} 33. Qe8+ {[%clk 0:01:10.4]}
33... Kg7 {[%clk 0:00:20.3]} 34. Rb7+ {[%clk 0:01:10.2]} 34... Kh6 {[%clk
0:00:19.8]} 35. Qg8 {[%clk 0:01:01.4]} 35... Qg5+ {[%clk 0:00:14.3]} 36. Kh1
{[%clk 0:00:54.8]} 36... Qg3 {[%clk 0:00:13.2]} 37. Rxh7+ {[%clk 0:00:53]} 37...
Kg5 {[%clk 0:00:13.1]} 38. Qd8+ {[%clk 0:00:52.5]} 1-0

[Event "*** Titled Tuesday Blitz"]
[Site "Chess.com"]
[Date "2021.02.16"]
[Round "3"]
[White "tylityli"]
[Black "ridnani2021"]
[Result "0-1"]
[WhiteElo "2221"]
[BlackElo "2401"]
[TimeControl "180+1"]
[EndTime "10:30:20 PST"]
[Termination "ridnani2021 won on time"]

1. d4 {[%clk 0:02:49.9]} 1... Nf6 {[%clk 0:02:59.4]} 2. c4 {[%clk 0:02:49.2]}
2... g6 {[%clk 0:03:00.3]} 3. Nc3 {[%clk 0:02:48.8]} 3... Bg7 {[%clk 0:03:00.9]}
4. e4 {[%clk 0:02:49.3]} 4... O-O {[%clk 0:03:01.5]} 5. Nge2 {[%clk 0:02:49.8]}
5... d6 {[%clk 0:03:01.5]} 6. Ng3 {[%clk 0:02:50.2]} 6... c5 {[%clk 0:03:00.8]}
7. d5 {[%clk 0:02:49.3]} 7... Nbd7 {[%clk 0:03:00.7]} 8. Be2 {[%clk 0:02:48.8]}
8... h5 {[%clk 0:02:59.7]} 9. Bg5 {[%clk 0:02:47.6]} 9... a6 {[%clk 0:02:57.7]}
10. a4 {[%clk 0:02:46.9]} 10... Qc7 {[%clk 0:02:57.4]} 11. O-O {[%clk 0:02:46]}
11... e6 {[%clk 0:02:57.7]} 12. dxe6 {[%clk 0:02:41.7]} 12... fxe6 {[%clk
0:02:58.6]} 13. Qd2 {[%clk 0:02:39.2]} 13... Ne5 {[%clk 0:02:54.1]} 14. Rad1
{[%clk 0:02:33.7]} 14... Rd8 {[%clk 0:02:53.8]} 15. f4 {[%clk 0:02:31.6]} 15...
Nc6 {[%clk 0:02:53.7]} 16. Qe3 {[%clk 0:02:19.9]} 16... Ng4 {[%clk 0:02:49.6]}
17. Bxg4 {[%clk 0:02:17.7]} 17... Bd4 {[%clk 0:02:49.2]} 18. Rxd4 {[%clk
0:02:12.7]} 18... cxd4 {[%clk 0:02:50.1]} 19. Bxd8 {[%clk 0:02:10.7]} 19... Qxd8
{[%clk 0:02:42.3]} 20. Qd3 {[%clk 0:01:38.9]} 20... dxc3 {[%clk 0:02:39.4]} 21.
Bf3 {[%clk 0:01:33.6]} 21... cxb2 {[%clk 0:02:39]} 22. Rb1 {[%clk 0:01:27]}
22... e5 {[%clk 0:02:32]} 23. f5 {[%clk 0:01:23.6]} 23... Qb6+ {[%clk
0:02:28.5]} 24. Kh1 {[%clk 0:01:15.3]} 24... Qd4 {[%clk 0:02:21.2]} 25. Qxd4
{[%clk 0:01:11.7]} 25... Nxd4 {[%clk 0:02:22.1]} 26. fxg6 {[%clk 0:01:08.1]}
26... h4 {[%clk 0:02:10.7]} 27. Ne2 {[%clk 0:01:01.8]} 27... Nxf3 {[%clk
0:02:04.9]} 28. gxf3 {[%clk 0:01:00.4]} 28... Be6 {[%clk 0:02:05.5]} 29. Rxb2
{[%clk 0:00:56.2]} 29... Bxc4 {[%clk 0:02:05.5]} 30. Nc3 {[%clk 0:00:53.6]}
30... b5 {[%clk 0:02:02.6]} 31. Kg2 {[%clk 0:00:45]} 31... Kg7 {[%clk
0:01:58.4]} 32. Kh3 {[%clk 0:00:36.5]} 32... Kxg6 {[%clk 0:01:56.3]} 33. Kxh4
{[%clk 0:00:36.5]} 33... Rb8 {[%clk 0:01:54]} 34. axb5 {[%clk 0:00:31.9]} 34...
axb5 {[%clk 0:01:54.9]} 35. Kg3 {[%clk 0:00:31.2]} 35... b4 {[%clk 0:01:54.3]}
36. Nd5 {[%clk 0:00:30.6]} 36... b3 {[%clk 0:01:52.8]} 37. f4 {[%clk 0:00:29.7]}
37... exf4+ {[%clk 0:01:45.9]} 38. Kxf4 {[%clk 0:00:24.4]} 38... Rf8+ {[%clk
0:01:39]} 39. Ke3 {[%clk 0:00:23.9]} 39... Rf1 {[%clk 0:01:39]} 40. Kd4 {[%clk
0:00:22.5]} 40... Rc1 {[%clk 0:01:38.7]} 41. Ne3 {[%clk 0:00:17.4]} 41... Be6
{[%clk 0:01:37.1]} 42. e5 {[%clk 0:00:16.4]} 42... dxe5+ {[%clk 0:01:27.9]} 43.
Kxe5 {[%clk 0:00:15]} 43... Bf7 {[%clk 0:01:28.4]} 44. h4 {[%clk 0:00:11.8]}
44... Kh5 {[%clk 0:01:26.6]} 45. Nf5 {[%clk 0:00:10.4]} 45... Rc2 {[%clk
0:01:23.6]} 46. Rb1 {[%clk 0:00:08.4]} 46... b2 {[%clk 0:01:23.5]} 47. Ne3
{[%clk 0:00:08.2]} 47... Re2 {[%clk 0:01:21.7]} 48. Kd4 {[%clk 0:00:04.2]} 48...
Ba2 {[%clk 0:01:19.9]} 0-1

[Event "*** Titled Tuesday Blitz"]
[Site "Chess.com"]
[Date "2021.02.16"]
[Round "3"]
[White "Buffy7"]
[Black "Oglob71"]
[Result "1-0"]
[WhiteElo "2636"]
[BlackElo "2393"]
[TimeControl "180+1"]
[EndTime "10:30:24 PST"]
[Termination "Buffy7 won by resignation"]

1. c4 {[%clk 0:03:00.9]} 1... Nf6 {[%clk 0:02:58.3]} 2. Nc3 {[%clk 0:03:00.8]}
2... c5 {[%clk 0:02:58.1]} 3. g3 {[%clk 0:03:00.2]} 3... e6 {[%clk 0:02:58.5]}
4. Nf3 {[%clk 0:02:58.5]} 4... b6 {[%clk 0:02:58]} 5. Bg2 {[%clk 0:02:58.3]}
5... Bb7 {[%clk 0:02:58.4]} 6. O-O {[%clk 0:02:58.9]} 6... d6 {[%clk 0:02:58.8]}
7. Re1 {[%clk 0:02:54.4]} 7... Nbd7 {[%clk 0:02:58.9]} 8. e4 {[%clk 0:02:52.8]}
8... Rc8 {[%clk 0:02:51.6]} 9. b3 {[%clk 0:02:50.6]} 9... a6 {[%clk 0:02:50.3]}
10. a4 {[%clk 0:02:48.2]} 10... Qc7 {[%clk 0:02:49.8]} 11. d4 {[%clk 0:02:45.2]}
11... cxd4 {[%clk 0:02:49.4]} 12. Nxd4 {[%clk 0:02:46.1]} 12... Be7 {[%clk
0:02:49.8]} 13. g4 {[%clk 0:02:35.3]} 13... h6 {[%clk 0:02:43.9]} 14. f4 {[%clk
0:02:20.9]} 14... g6 {[%clk 0:02:23.5]} 15. f5 {[%clk 0:01:52.3]} 15... e5
{[%clk 0:02:19.4]} 16. Nc2 {[%clk 0:01:52.1]} 16... gxf5 {[%clk 0:02:16]} 17.
gxf5 {[%clk 0:01:29.6]} 17... Nc5 {[%clk 0:02:08.3]} 18. Nb4 {[%clk 0:00:52.6]}
18... Ncxe4 {[%clk 0:01:38.6]} 19. Nxe4 {[%clk 0:00:51.9]} 19... Bxe4 {[%clk
0:01:37.1]} 20. Bxe4 {[%clk 0:00:50.5]} 20... Qc5+ {[%clk 0:01:37]} 21. Be3
{[%clk 0:00:47.3]} 21... Qxb4 {[%clk 0:01:37]} 22. Bb7 {[%clk 0:00:45.5]} 22...
Rd8 {[%clk 0:01:33.1]} 23. Bc6+ {[%clk 0:00:43.7]} 23... Kf8 {[%clk 0:01:32.2]}
24. Kh1 {[%clk 0:00:43.4]} 24... d5 {[%clk 0:01:22]} 25. Qc1 {[%clk 0:00:29.9]}
25... Ng4 {[%clk 0:01:12.5]} 26. Bxd5 {[%clk 0:00:27.3]} 26... Rxd5 {[%clk
0:01:10.6]} 27. cxd5 {[%clk 0:00:17.4]} 27... Qe4+ {[%clk 0:01:10.3]} 28. Kg1
{[%clk 0:00:17.8]} 28... Nxe3 {[%clk 0:01:10]} 29. Rxe3 {[%clk 0:00:17.5]} 29...
Bc5 {[%clk 0:01:10.3]} 30. Kf2 {[%clk 0:00:17.3]} 30... Rg8 {[%clk 0:01:06.7]}
31. Qxc5+ {[%clk 0:00:14.6]} 31... bxc5 {[%clk 0:01:00.6]} 32. Rxe4 {[%clk
0:00:14.3]} 32... f6 {[%clk 0:01:00.2]} 33. Rc1 {[%clk 0:00:14.5]} 33... Ke7
{[%clk 0:00:59.4]} 34. Rxc5 {[%clk 0:00:14.4]} 34... Rb8 {[%clk 0:01:00]} 35.
Rc7+ {[%clk 0:00:14.1]} 35... Kd6 {[%clk 0:00:59.8]} 36. Rc3 {[%clk 0:00:14.9]}
36... Kxd5 {[%clk 0:00:59.3]} 37. Rec4 {[%clk 0:00:15.6]} 37... e4 {[%clk
0:00:58.7]} 38. Ke3 {[%clk 0:00:15.9]} 38... Ke5 {[%clk 0:00:55]} 39. Rc5+
{[%clk 0:00:15.2]} 39... Kd6 {[%clk 0:00:55.4]} 40. Rc6+ {[%clk 0:00:15.6]}
40... Ke7 {[%clk 0:00:55]} 41. Re6+ {[%clk 0:00:15.3]} 1-0